[Event "*** Titled Tuesday Blitz"]
[Site "Chess.com"]
[Date "2021.02.09"]
[Round "7"]
[White "korkmaz16"]
[Black "Sofiia_Hryzlova"]
[Result "1-0"]
[WhiteElo "2413"]
[BlackElo "2275"]
[TimeControl "180+1"]
[EndTime "11:16:57 PST"]
[Termination "korkmaz16 won by resignation"]

1. e4 {[%clk 0:03:00.9]} 1... c5 {[%clk 0:02:48.7]} 2. Nc3 {[%clk 0:02:59.9]}
2... Nc6 {[%clk 0:02:44.8]} 3. f4 {[%clk 0:02:59.7]} 3... e6 {[%clk 0:02:40.8]}
4. Nf3 {[%clk 0:02:59.7]} 4... d5 {[%clk 0:02:40.6]} 5. Bb5 {[%clk 0:02:59.3]}
5... Nf6 {[%clk 0:02:36.7]} 6. e5 {[%clk 0:02:47.6]} 6... Nd7 {[%clk 0:02:35.5]}
7. Bxc6 {[%clk 0:02:47]} 7... bxc6 {[%clk 0:02:35.1]} 8. O-O {[%clk 0:02:45.5]}
8... c4 {[%clk 0:02:28.4]} 9. d4 {[%clk 0:02:43.5]} 9... cxd3 {[%clk 0:02:27.9]}
10. cxd3 {[%clk 0:02:43.6]} 10... Be7 {[%clk 0:02:22.8]} 11. Qe1 {[%clk
0:02:41.3]} 11... Ba6 {[%clk 0:02:21.3]} 12. Qg3 {[%clk 0:02:23.6]} 12... Kf8
{[%clk 0:02:08.8]} 13. Nd4 {[%clk 0:02:19.8]} 13... Bc5 {[%clk 0:01:58.4]} 14.
Be3 {[%clk 0:02:19]} 14... Qb6 {[%clk 0:01:54.9]} 15. Na4 {[%clk 0:02:18.2]}
15... Qc7 {[%clk 0:01:34.8]} 16. Nxe6+ {[%clk 0:02:07.7]} 16... fxe6 {[%clk
0:01:27.8]} 17. Nxc5 {[%clk 0:01:58.1]} 17... Nxc5 {[%clk 0:01:22.1]} 18. Bxc5+
{[%clk 0:01:58]} 18... Ke8 {[%clk 0:01:16.7]} 19. f5 {[%clk 0:01:57]} 19... exf5
{[%clk 0:01:07.4]} 20. Rxf5 {[%clk 0:01:56.5]} 20... g6 {[%clk 0:01:02.5]} 21.
Rf6 {[%clk 0:01:55.3]} 21... Qa5 {[%clk 0:00:51]} 22. d4 {[%clk 0:01:48.1]}
22... Rb8 {[%clk 0:00:40.3]} 23. e6 {[%clk 0:01:36]} 23... Rxb2 {[%clk
0:00:34.5]} 24. Qd6 {[%clk 0:01:35.6]} 24... Rxg2+ {[%clk 0:00:16.7]} 25. Kxg2
{[%clk 0:01:21.7]} 25... Qd2+ {[%clk 0:00:17]} 26. Kh1 {[%clk 0:01:21.4]} 1-0

[Event "*** Titled Tuesday Blitz"]
[Site "Chess.com"]
[Date "2021.02.09"]
[Round "7"]
[White "beto-betun"]
[Black "Atco84"]
[Result "0-1"]
[WhiteElo "2184"]
[BlackElo "2473"]
[TimeControl "180+1"]
[EndTime "11:17:05 PST"]
[Termination "Atco84 won on time"]

1. d4 {[%clk 0:03:00.9]} 1... e6 {[%clk 0:02:59.3]} 2. Nf3 {[%clk 0:03:01.3]}
2... c5 {[%clk 0:02:58.5]} 3. g3 {[%clk 0:03:01.2]} 3... b5 {[%clk 0:02:57.2]}
4. Bg2 {[%clk 0:02:59.6]} 4... Bb7 {[%clk 0:02:57.6]} 5. O-O {[%clk 0:02:59.5]}
5... Nf6 {[%clk 0:02:56.9]} 6. a4 {[%clk 0:02:59.1]} 6... b4 {[%clk 0:02:56.4]}
7. c3 {[%clk 0:02:57.9]} 7... a5 {[%clk 0:02:53]} 8. c4 {[%clk 0:02:54.8]} 8...
cxd4 {[%clk 0:02:49.7]} 9. Nxd4 {[%clk 0:02:55.7]} 9... Bxg2 {[%clk 0:02:48.7]}
10. Kxg2 {[%clk 0:02:56.6]} 10... d5 {[%clk 0:02:43.9]} 11. Nd2 {[%clk
0:02:30.5]} 11... Be7 {[%clk 0:02:33.2]} 12. b3 {[%clk 0:02:19.1]} 12... O-O
{[%clk 0:02:30.1]} 13. Bb2 {[%clk 0:02:19.4]} 13... Ra6 {[%clk 0:02:11.2]} 14.
f3 {[%clk 0:02:05.6]} 14... Nbd7 {[%clk 0:02:06]} 15. Nb5 {[%clk 0:01:57.5]}
15... Qb8 {[%clk 0:01:48.7]} 16. cxd5 {[%clk 0:01:50.3]} 16... Nxd5 {[%clk
0:01:45.9]} 17. Nc4 {[%clk 0:01:43.9]} 17... N7b6 {[%clk 0:01:37.3]} 18. Bd4
{[%clk 0:00:06]} 18... Rd8 {[%clk 0:00:54.3]} 0-1

[Event "*** Titled Tuesday Blitz"]
[Site "Chess.com"]
[Date "2021.02.09"]
[Round "7"]
[White "OriTaichman"]
[Black "BahadirOzen"]
[Result "0-1"]
[WhiteElo "2537"]
[BlackElo "2721"]
[TimeControl "180+1"]
[EndTime "11:17:07 PST"]
[Termination "BahadirOzen won by resignation"]

1. e4 {[%clk 0:03:00.9]} 1... g6 {[%clk 0:03:00.5]} 2. h4 {[%clk 0:02:58.6]}
2... d5 {[%clk 0:02:56.1]} 3. exd5 {[%clk 0:02:58.2]} 3... Nf6 {[%clk
0:02:56.5]} 4. Bb5+ {[%clk 0:02:56.5]} 4... c6 {[%clk 0:02:53]} 5. dxc6 {[%clk
0:02:55.5]} 5... Nxc6 {[%clk 0:02:53.5]} 6. d4 {[%clk 0:02:45.8]} 6... Bg7
{[%clk 0:02:45.7]} 7. h5 {[%clk 0:02:43.4]} 7... Nxh5 {[%clk 0:02:41.1]} 8. c3
{[%clk 0:02:01.8]} 8... O-O {[%clk 0:02:37]} 9. Nf3 {[%clk 0:00:55.2]} 9... Bg4
{[%clk 0:02:12.6]} 10. Be3 {[%clk 0:00:47.1]} 10... e5 {[%clk 0:02:07.4]} 11. d5
{[%clk 0:00:47]} 11... Qa5 {[%clk 0:01:52]} 12. Na3 {[%clk 0:00:39.4]} 12...
Rad8 {[%clk 0:01:46.7]} 13. Qb3 {[%clk 0:00:18.8]} 13... Nd4 {[%clk 0:01:40.7]}
14. Bxd4 {[%clk 0:00:14.6]} 14... exd4 {[%clk 0:01:40.3]} 15. Nc4 {[%clk
0:00:14.8]} 15... Rfe8+ {[%clk 0:01:26.5]} 16. Bxe8 {[%clk 0:00:14.5]} 16...
Rxe8+ {[%clk 0:01:27.4]} 17. Kf1 {[%clk 0:00:14.5]} 17... Qa6 {[%clk 0:01:27.6]}
18. Nxd4 {[%clk 0:00:13.5]} 18... Bxd4 {[%clk 0:01:25.6]} 19. cxd4 {[%clk
0:00:14.4]} 19... Be2+ {[%clk 0:01:24.8]} 20. Kg1 {[%clk 0:00:14]} 20... Bxc4
{[%clk 0:01:25.1]} 21. Qf3 {[%clk 0:00:12.9]} 21... Qd6 {[%clk 0:01:20.6]} 22.
Rxh5 {[%clk 0:00:09.7]} 22... gxh5 {[%clk 0:01:18.1]} 23. Qxh5 {[%clk
0:00:10.5]} 23... Bxd5 {[%clk 0:01:16.6]} 24. Qg5+ {[%clk 0:00:10.4]} 24... Kh8
{[%clk 0:01:12.3]} 25. Rc1 {[%clk 0:00:05.2]} 25... Rg8 {[%clk 0:01:10.7]} 26.
Qxd5 {[%clk 0:00:05.6]} 0-1

[Event "*** Titled Tuesday Blitz"]
[Site "Chess.com"]
[Date "2021.02.09"]
[Round "7"]
[White "JSMastropiero"]
[Black "Irina_Baraeva"]
[Result "0-1"]
[WhiteElo "2382"]
[BlackElo "2288"]
[TimeControl "180+1"]
[EndTime "11:17:12 PST"]
[Termination "Irina_Baraeva won by resignation"]

1. e4 {[%clk 0:03:00.9]} 1... e6 {[%clk 0:02:58]} 2. d4 {[%clk 0:02:56.9]} 2...
d5 {[%clk 0:02:58]} 3. Nc3 {[%clk 0:02:56.5]} 3... Bb4 {[%clk 0:02:56.9]} 4. Qd3
{[%clk 0:02:54.2]} 4... dxe4 {[%clk 0:02:52.5]} 5. Qxe4 {[%clk 0:02:53.1]} 5...
Nf6 {[%clk 0:02:48.2]} 6. Qh4 {[%clk 0:02:51.2]} 6... c5 {[%clk 0:02:37.7]} 7.
dxc5 {[%clk 0:02:48.8]} 7... Bxc3+ {[%clk 0:02:36.2]} 8. bxc3 {[%clk 0:02:47.9]}
8... Nc6 {[%clk 0:02:31]} 9. Nf3 {[%clk 0:02:39.5]} 9... Qa5 {[%clk 0:02:23.4]}
10. Bd2 {[%clk 0:02:35]} 10... Qxc5 {[%clk 0:02:22.4]} 11. Bd3 {[%clk
0:02:35.4]} 11... e5 {[%clk 0:02:14.1]} 12. O-O {[%clk 0:02:27.9]} 12... Bg4
{[%clk 0:02:09.4]} 13. Ng5 {[%clk 0:02:21.2]} 13... Rd8 {[%clk 0:01:30.7]} 14.
Rae1 {[%clk 0:02:11.1]} 14... h6 {[%clk 0:01:18.2]} 15. Kh1 {[%clk 0:01:53.5]}
15... O-O {[%clk 0:01:14.4]} 16. Ne4 {[%clk 0:01:53.4]} 16... Nxe4 {[%clk
0:01:13.6]} 17. Rxe4 {[%clk 0:01:52.8]} 17... Bf5 {[%clk 0:01:11.7]} 18. Rc4
{[%clk 0:00:53.8]} 18... Qd6 {[%clk 0:01:05.6]} 19. Bxf5 {[%clk 0:00:44.7]}
19... Qxd2 {[%clk 0:01:05.4]} 20. Rg4 {[%clk 0:00:44]} 20... Qe2 {[%clk
0:00:56.6]} 21. Rg1 {[%clk 0:00:19.1]} 21... Rd1 {[%clk 0:00:56.1]} 22. Rxg7+
{[%clk 0:00:16.6]} 22... Kxg7 {[%clk 0:00:53.4]} 23. Qg4+ {[%clk 0:00:12.3]}
23... Qxg4 {[%clk 0:00:52.9]} 24. Bxg4 {[%clk 0:00:13.2]} 24... Rxg1+ {[%clk
0:00:53]} 0-1

[Event "*** Titled Tuesday Blitz"]
[Site "Chess.com"]
[Date "2021.02.09"]
[Round "7"]
[White "fabianvivasz"]
[Black "esteban062000"]
[Result "1-0"]
[WhiteElo "2338"]
[BlackElo "2151"]
[TimeControl "180+1"]
[EndTime "11:17:13 PST"]
[Termination "fabianvivasz won by resignation"]

1. e4 {[%clk 0:03:00.6]} 1... c5 {[%clk 0:03:00]} 2. Nc3 {[%clk 0:02:59.7]} 2...
g6 {[%clk 0:02:58.9]} 3. Bc4 {[%clk 0:02:57.7]} 3... Nc6 {[%clk 0:02:58.4]} 4.
a3 {[%clk 0:02:45.6]} 4... Bg7 {[%clk 0:02:45.6]} 5. d3 {[%clk 0:02:41.9]} 5...
e6 {[%clk 0:02:41.6]} 6. Ba2 {[%clk 0:02:35.1]} 6... Nge7 {[%clk 0:02:27.1]} 7.
h4 {[%clk 0:02:34.8]} 7... d5 {[%clk 0:02:13]} 8. Nge2 {[%clk 0:02:31.2]} 8...
b6 {[%clk 0:01:49.4]} 9. h5 {[%clk 0:02:28.3]} 9... Bb7 {[%clk 0:01:43.9]} 10.
Bf4 {[%clk 0:02:24.5]} 10... dxe4 {[%clk 0:01:33.3]} 11. Nxe4 {[%clk 0:02:20.6]}
11... Nf5 {[%clk 0:01:20.5]} 12. g4 {[%clk 0:02:13.6]} 12... Nfd4 {[%clk
0:01:18.8]} 13. Nd6+ {[%clk 0:02:10.7]} 13... Kf8 {[%clk 0:01:07.2]} 14. Nxb7
{[%clk 0:02:07.2]} 14... Qf6 {[%clk 0:00:54.3]} 15. h6 {[%clk 0:01:54]} 15...
Nxe2 {[%clk 0:00:33.4]} 16. hxg7+ {[%clk 0:01:53.3]} 16... Kxg7 {[%clk 0:00:31]}
17. Bh6+ {[%clk 0:01:52]} 17... Kg8 {[%clk 0:00:31.4]} 18. Qxe2 {[%clk
0:01:50.8]} 18... Nd4 {[%clk 0:00:28.4]} 19. Qd1 {[%clk 0:01:29.1]} 19... g5
{[%clk 0:00:19.2]} 20. Nd6 {[%clk 0:01:21.2]} 20... Qe5+ {[%clk 0:00:13.6]} 21.
Ne4 {[%clk 0:01:21]} 21... Qf4 {[%clk 0:00:09.3]} 22. Rh3 {[%clk 0:01:01.1]}
22... e5 {[%clk 0:00:03.6]} 23. Bxg5 {[%clk 0:00:59.6]} 23... Nf3+ {[%clk
0:00:01.2]} 1-0

[Event "*** Titled Tuesday Blitz"]
[Site "Chess.com"]
[Date "2021.02.09"]
[Round "7"]
[White "KetiGrant"]
[Black "Maksimus1998"]
[Result "0-1"]
[WhiteElo "2355"]
[BlackElo "2499"]
[TimeControl "180+1"]
[EndTime "11:17:15 PST"]
[Termination "Maksimus1998 won by resignation"]

1. e4 {[%clk 0:03:00.9]} 1... c6 {[%clk 0:02:58.5]} 2. d4 {[%clk 0:03:00.4]}
2... d5 {[%clk 0:02:58.8]} 3. Nc3 {[%clk 0:02:58.9]} 3... dxe4 {[%clk
0:02:58.9]} 4. Nxe4 {[%clk 0:02:59]} 4... Bf5 {[%clk 0:02:58.6]} 5. Ng3 {[%clk
0:02:58.9]} 5... Bg6 {[%clk 0:02:58.9]} 6. h4 {[%clk 0:02:59.4]} 6... h6 {[%clk
0:02:59.2]} 7. Nf3 {[%clk 0:03:00]} 7... Nd7 {[%clk 0:02:58.9]} 8. h5 {[%clk
0:02:59.6]} 8... Bh7 {[%clk 0:02:58.7]} 9. Bd3 {[%clk 0:03:00.2]} 9... Bxd3
{[%clk 0:02:58.7]} 10. Qxd3 {[%clk 0:03:01.1]} 10... e6 {[%clk 0:02:58.6]} 11.
Bf4 {[%clk 0:02:57.2]} 11... Qa5+ {[%clk 0:02:56.5]} 12. Bd2 {[%clk 0:02:54.1]}
12... Bb4 {[%clk 0:02:56]} 13. c3 {[%clk 0:02:50.3]} 13... Be7 {[%clk
0:02:53.1]} 14. O-O {[%clk 0:02:47]} 14... Ngf6 {[%clk 0:02:52.4]} 15. Rfe1
{[%clk 0:02:44.4]} 15... O-O {[%clk 0:02:48.1]} 16. c4 {[%clk 0:02:39.2]} 16...
Qd8 {[%clk 0:02:47.2]} 17. Qe2 {[%clk 0:02:35.2]} 17... Re8 {[%clk 0:02:46.3]}
18. Rad1 {[%clk 0:02:30.9]} 18... Qc7 {[%clk 0:02:44.2]} 19. Ne5 {[%clk
0:02:24.1]} 19... Nxe5 {[%clk 0:02:43.2]} 20. dxe5 {[%clk 0:02:23.4]} 20... Nd7
{[%clk 0:02:40.9]} 21. Bf4 {[%clk 0:02:12]} 21... Rad8 {[%clk 0:02:36.9]} 22.
Qg4 {[%clk 0:02:10.1]} 22... Kh8 {[%clk 0:02:36.4]} 23. Rd3 {[%clk 0:01:50.2]}
23... Nb6 {[%clk 0:02:25.7]} 24. Rxd8 {[%clk 0:01:33.5]} 24... Rxd8 {[%clk
0:02:26.6]} 25. b3 {[%clk 0:01:34]} 25... Rd4 {[%clk 0:02:23.9]} 26. Ne4 {[%clk
0:01:32.1]} 26... Nd7 {[%clk 0:02:09.3]} 27. Qg3 {[%clk 0:01:25.7]} 27... Nc5
{[%clk 0:01:37.6]} 28. Nxc5 {[%clk 0:00:43.8]} 28... Bxc5 {[%clk 0:01:36.3]} 29.
Be3 {[%clk 0:00:30]} 29... Re4 {[%clk 0:01:30]} 30. f4 {[%clk 0:00:13.5]} 30...
Qa5 {[%clk 0:01:23]} 31. Re2 {[%clk 0:00:11.2]} 31... Rxe3 {[%clk 0:01:20.1]}
32. Rxe3 {[%clk 0:00:10.8]} 32... Qd2 {[%clk 0:01:20.2]} 0-1

[Event "*** Titled Tuesday Blitz"]
[Site "Chess.com"]
[Date "2021.02.09"]
[Round "7"]
[White "Lion-Al-Messi"]
[Black "HanSchut"]
[Result "1-0"]
[WhiteElo "2530"]
[BlackElo "2278"]
[TimeControl "180+1"]
[EndTime "11:17:17 PST"]
[Termination "Lion-Al-Messi won by checkmate"]

1. e4 {[%clk 0:02:40.3]} 1... c5 {[%clk 0:02:59.5]} 2. Nf3 {[%clk 0:02:40.6]}
2... d6 {[%clk 0:02:59.6]} 3. d4 {[%clk 0:02:41]} 3... cxd4 {[%clk 0:03:00.5]}
4. Nxd4 {[%clk 0:02:41.7]} 4... Nf6 {[%clk 0:03:01.1]} 5. Nc3 {[%clk 0:02:42.3]}
5... a6 {[%clk 0:03:01.8]} 6. h3 {[%clk 0:02:42.4]} 6... e5 {[%clk 0:03:00.5]}
7. Nde2 {[%clk 0:02:42.6]} 7... h5 {[%clk 0:02:59.8]} 8. Bg5 {[%clk 0:02:41.7]}
8... Be6 {[%clk 0:02:52.3]} 9. g3 {[%clk 0:02:40.8]} 9... Nbd7 {[%clk
0:02:52.5]} 10. Bg2 {[%clk 0:02:40.5]} 10... Be7 {[%clk 0:02:52.5]} 11. O-O
{[%clk 0:02:40.7]} 11... Rc8 {[%clk 0:02:39.2]} 12. Qd2 {[%clk 0:02:40.2]} 12...
b5 {[%clk 0:02:35.3]} 13. f4 {[%clk 0:02:38.5]} 13... b4 {[%clk 0:02:25.9]} 14.
Nd5 {[%clk 0:02:38.4]} 14... Bxd5 {[%clk 0:01:47.1]} 15. exd5 {[%clk 0:02:39.3]}
15... Qb6+ {[%clk 0:01:29.8]} 16. Kh2 {[%clk 0:02:38.7]} 16... Ng4+ {[%clk
0:01:11.5]} 17. hxg4 {[%clk 0:02:38.1]} 17... hxg4+ {[%clk 0:01:11.5]} 18. Bh3
{[%clk 0:02:38.1]} 18... Rxh3+ {[%clk 0:01:08.1]} 19. Kg2 {[%clk 0:02:38.2]}
19... Bxg5 {[%clk 0:00:59]} 20. fxg5 {[%clk 0:02:39.1]} 20... Qc5 {[%clk
0:00:48.2]} 21. Rac1 {[%clk 0:02:36.2]} 21... Nb6 {[%clk 0:00:47.8]} 22. c4
{[%clk 0:02:31.7]} 22... Nxc4 {[%clk 0:00:39.6]} 23. Qd3 {[%clk 0:02:27.2]}
23... Ne3+ {[%clk 0:00:34.8]} 24. Kg1 {[%clk 0:02:16]} 24... Nc4+ {[%clk
0:00:15.9]} 25. Rf2 {[%clk 0:02:11.8]} 25... Rh2 {[%clk 0:00:13.4]} 26. Rf1
{[%clk 0:02:06.3]} 26... Rxf2 {[%clk 0:00:13.1]} 27. Rxf2 {[%clk 0:02:07.2]}
27... Nxb2 {[%clk 0:00:13]} 28. Qxa6 {[%clk 0:01:33.6]} 28... Rc7 {[%clk
0:00:12]} 29. g6 {[%clk 0:01:26.7]} 29... fxg6 {[%clk 0:00:11.8]} 30. Qa8+
{[%clk 0:01:23.7]} 30... Kd7 {[%clk 0:00:10.3]} 31. Kg2 {[%clk 0:01:16.7]} 31...
Ke7 {[%clk 0:00:01.4]} 32. Qf8+ {[%clk 0:01:15.5]} 32... Kd7 {[%clk 0:00:01.9]}
33. Rf7# {[%clk 0:01:16.1]} 1-0

[Event "*** Titled Tuesday Blitz"]
[Site "Chess.com"]
[Date "2021.02.09"]
[Round "7"]
[White "NovikovaGalina"]
[Black "Shuvalov"]
[Result "1-0"]
[WhiteElo "2396"]
[BlackElo "2494"]
[TimeControl "180+1"]
[EndTime "11:17:18 PST"]
[Termination "NovikovaGalina won by resignation"]

1. e4 {[%clk 0:02:59.7]} 1... e6 {[%clk 0:02:44.9]} 2. Nf3 {[%clk 0:02:59.6]}
2... d5 {[%clk 0:02:43.8]} 3. e5 {[%clk 0:03:00]} 3... c5 {[%clk 0:02:41.6]} 4.
b4 {[%clk 0:03:00.3]} 4... cxb4 {[%clk 0:02:41.7]} 5. a3 {[%clk 0:03:00.8]} 5...
Bd7 {[%clk 0:02:41.7]} 6. axb4 {[%clk 0:03:01]} 6... Bxb4 {[%clk 0:02:42.6]} 7.
c3 {[%clk 0:03:01.3]} 7... Ba5 {[%clk 0:02:42.8]} 8. d4 {[%clk 0:03:02.2]} 8...
Qb6 {[%clk 0:02:42.2]} 9. Bd3 {[%clk 0:02:51.8]} 9... Bb5 {[%clk 0:02:41.6]} 10.
O-O {[%clk 0:02:52.7]} 10... Bxd3 {[%clk 0:02:41.4]} 11. Qxd3 {[%clk 0:02:53.6]}
11... Ne7 {[%clk 0:02:40.6]} 12. Na3 {[%clk 0:02:40.8]} 12... a6 {[%clk
0:02:36.1]} 13. Ng5 {[%clk 0:02:31.4]} 13... h6 {[%clk 0:02:31.9]} 14. Nh3
{[%clk 0:02:31.1]} 14... Qc7 {[%clk 0:02:28.6]} 15. Bd2 {[%clk 0:02:29.3]} 15...
Nbc6 {[%clk 0:02:20.9]} 16. Nc2 {[%clk 0:02:23.5]} 16... Rc8 {[%clk 0:02:02.8]}
17. Ne3 {[%clk 0:02:23]} 17... Bb6 {[%clk 0:01:54.3]} 18. f4 {[%clk 0:02:15]}
18... h5 {[%clk 0:01:18.2]} 19. f5 {[%clk 0:02:07.4]} 19... exf5 {[%clk
0:01:17.8]} 20. Nxf5 {[%clk 0:02:08.2]} 20... Nxf5 {[%clk 0:01:03.9]} 21. Qxf5
{[%clk 0:02:09.1]} 21... g6 {[%clk 0:00:56.3]} 22. Qf6 {[%clk 0:02:04.3]} 22...
Rg8 {[%clk 0:00:41.1]} 23. e6 {[%clk 0:02:01.3]} 23... fxe6 {[%clk 0:00:36.7]}
24. Qxe6+ {[%clk 0:02:02.2]} 24... Ne7 {[%clk 0:00:35.5]} 25. Rae1 {[%clk
0:01:53.9]} 25... Rf8 {[%clk 0:00:24.4]} 26. Qxg6+ {[%clk 0:01:47.5]} 26... Kd7
{[%clk 0:00:21.5]} 27. Qe6+ {[%clk 0:01:29.8]} 27... Ke8 {[%clk 0:00:21.4]} 28.
Bh6 {[%clk 0:01:17.6]} 28... Rxf1+ {[%clk 0:00:20.1]} 29. Rxf1 {[%clk
0:01:18.5]} 29... Bxd4+ {[%clk 0:00:10.8]} 30. cxd4 {[%clk 0:01:19.4]} 30... Qc1
{[%clk 0:00:11]} 31. Bxc1 {[%clk 0:01:17.9]} 31... Rc6 {[%clk 0:00:11.3]} 32.
Qf7+ {[%clk 0:01:17.4]} 32... Kd7 {[%clk 0:00:11.5]} 33. Re1 {[%clk 0:01:17.8]}
1-0

[Event "*** Titled Tuesday Blitz"]
[Site "Chess.com"]
[Date "2021.02.09"]
[Round "7"]
[White "Vanina1989"]
[Black "ArjunErigaisi2003"]
[Result "1-0"]
[WhiteElo "2727"]
[BlackElo "2884"]
[TimeControl "180+1"]
[EndTime "11:17:22 PST"]
[Termination "Vanina1989 won by resignation"]

1. d3 {[%clk 0:03:00.9]} 1... Nc6 {[%clk 0:02:58.1]} 2. e4 {[%clk 0:03:01]} 2...
g6 {[%clk 0:02:57.5]} 3. f4 {[%clk 0:03:00]} 3... Bg7 {[%clk 0:02:58.4]} 4. Nf3
{[%clk 0:03:00.3]} 4... d6 {[%clk 0:02:57.5]} 5. g3 {[%clk 0:03:00.8]} 5... Bg4
{[%clk 0:02:57.4]} 6. h3 {[%clk 0:02:59.2]} 6... Bxf3 {[%clk 0:02:57.3]} 7. Qxf3
{[%clk 0:02:59.4]} 7... e5 {[%clk 0:02:57.8]} 8. Bg2 {[%clk 0:02:57.5]} 8...
Nge7 {[%clk 0:02:57.7]} 9. O-O {[%clk 0:02:57.1]} 9... O-O {[%clk 0:02:58.2]}
10. f5 {[%clk 0:02:54.8]} 10... Nd4 {[%clk 0:02:49.6]} 11. Qf2 {[%clk
0:02:54.5]} 11... f6 {[%clk 0:02:46.6]} 12. c3 {[%clk 0:02:54.3]} 12... Ndc6
{[%clk 0:02:46.1]} 13. g4 {[%clk 0:02:54.8]} 13... g5 {[%clk 0:02:45.7]} 14. h4
{[%clk 0:02:50.8]} 14... h6 {[%clk 0:02:45.7]} 15. c4 {[%clk 0:02:48.9]} 15...
b5 {[%clk 0:02:40]} 16. Be3 {[%clk 0:02:45.9]} 16... Nb4 {[%clk 0:02:35.6]} 17.
Rd1 {[%clk 0:02:39.6]} 17... Qe8 {[%clk 0:02:27.5]} 18. hxg5 {[%clk 0:02:37.9]}
18... hxg5 {[%clk 0:02:27.3]} 19. a3 {[%clk 0:02:34]} 19... Nbc6 {[%clk
0:02:21.3]} 20. cxb5 {[%clk 0:02:28.3]} 20... Nd4 {[%clk 0:02:19.1]} 21. a4
{[%clk 0:02:19.5]} 21... a6 {[%clk 0:02:09.4]} 22. bxa6 {[%clk 0:02:18.9]} 22...
Nec6 {[%clk 0:01:58.3]} 23. Nc3 {[%clk 0:02:17.2]} 23... Rxa6 {[%clk 0:01:56.2]}
24. Nd5 {[%clk 0:02:17.4]} 24... Qb8 {[%clk 0:01:51]} 25. b4 {[%clk 0:01:41.9]}
25... Nxb4 {[%clk 0:01:49.9]} 26. Rdb1 {[%clk 0:01:31.4]} 26... Ndc2 {[%clk
0:01:35.8]} 27. Ra2 {[%clk 0:01:19.2]} 27... Nxe3 {[%clk 0:00:29.3]} 28. Rxb4
{[%clk 0:01:18.2]} 28... Nxg4 {[%clk 0:00:29.7]} 29. Rxb8 {[%clk 0:01:17.6]}
29... Nxf2 {[%clk 0:00:30.3]} 30. Rxf8+ {[%clk 0:01:17.1]} 30... Kxf8 {[%clk
0:00:31.2]} 31. Kxf2 {[%clk 0:01:17.4]} 31... c5 {[%clk 0:00:32.1]} 32. Bf1
{[%clk 0:01:15.3]} 32... Ra5 {[%clk 0:00:30.9]} 33. Nb6 {[%clk 0:01:14.7]} 33...
Ke7 {[%clk 0:00:30]} 34. Nc4 {[%clk 0:01:14.5]} 34... Ra6 {[%clk 0:00:30.1]} 35.
a5 {[%clk 0:01:14.3]} 35... Kd7 {[%clk 0:00:30.5]} 36. Rb2 {[%clk 0:01:13.8]}
36... Kc7 {[%clk 0:00:30]} 37. Be2 {[%clk 0:01:11.4]} 37... Bf8 {[%clk
0:00:30.2]} 38. Bd1 {[%clk 0:01:11.1]} 38... Be7 {[%clk 0:00:29.1]} 39. Ba4
{[%clk 0:01:11]} 39... Ra8 {[%clk 0:00:29.7]} 40. Rb6 {[%clk 0:01:08.9]} 1-0

[Event "*** Titled Tuesday Blitz"]
[Site "Chess.com"]
[Date "2021.02.09"]
[Round "7"]
[White "Abdimalik_Abdisalimov"]
[Black "NikolaMa2000"]
[Result "0-1"]
[WhiteElo "2274"]
[BlackElo "1882"]
[TimeControl "180+1"]
[EndTime "11:17:23 PST"]
[Termination "NikolaMa2000 won on time"]

1. d4 {[%clk 0:03:00.9]} 1... e6 {[%clk 0:02:59.6]} 2. c4 {[%clk 0:03:00.3]}
2... Nf6 {[%clk 0:02:59.9]} 3. Nf3 {[%clk 0:03:00.3]} 3... Bb4+ {[%clk
0:02:58.6]} 4. Bd2 {[%clk 0:02:59.7]} 4... a5 {[%clk 0:02:57.5]} 5. g3 {[%clk
0:02:58.8]} 5... O-O {[%clk 0:02:57.2]} 6. Bg2 {[%clk 0:02:59]} 6... d5 {[%clk
0:02:56.9]} 7. O-O {[%clk 0:02:40]} 7... dxc4 {[%clk 0:02:55.8]} 8. Qc2 {[%clk
0:02:27.9]} 8... b5 {[%clk 0:02:54.6]} 9. e3 {[%clk 0:02:22.9]} 9... Bb7 {[%clk
0:02:50.4]} 10. a4 {[%clk 0:02:20.6]} 10... Be4 {[%clk 0:02:45.8]} 11. Qc1
{[%clk 0:02:19.9]} 11... c6 {[%clk 0:02:35.1]} 12. axb5 {[%clk 0:02:12.2]} 12...
cxb5 {[%clk 0:02:31.9]} 13. Na3 {[%clk 0:01:57.9]} 13... Bxd2 {[%clk 0:02:29.7]}
14. Qxd2 {[%clk 0:01:54.3]} 14... Qb6 {[%clk 0:02:28.7]} 15. Rfc1 {[%clk
0:01:49.3]} 15... Nc6 {[%clk 0:02:16]} 16. Qd1 {[%clk 0:00:56.7]} 16... Nb4
{[%clk 0:02:13.5]} 17. Ne5 {[%clk 0:00:49.8]} 17... Bxg2 {[%clk 0:02:11.7]} 18.
Kxg2 {[%clk 0:00:46.6]} 18... Qb7+ {[%clk 0:02:01.3]} 19. Kg1 {[%clk 0:00:44.3]}
19... Rfb8 {[%clk 0:01:49.7]} 20. b3 {[%clk 0:00:25.4]} 20... cxb3 {[%clk
0:01:48.4]} 21. Qxb3 {[%clk 0:00:26.3]} 21... Nbd5 {[%clk 0:01:32.5]} 22. Rcb1
{[%clk 0:00:23.1]} 22... b4 {[%clk 0:01:31.2]} 23. Nac4 {[%clk 0:00:22]} 23...
a4 {[%clk 0:01:17.5]} 24. Qc2 {[%clk 0:00:07.5]} 24... b3 {[%clk 0:01:13]} 25.
Qb2 {[%clk 0:00:05.1]} 25... Ne4 {[%clk 0:01:07.7]} 26. f3 {[%clk 0:00:03.8]}
26... Nec3 {[%clk 0:01:05.4]} 0-1